fUST/lending_fUST_20250418
["ID","MTS","AMOUNT","RATE_DAILY","PERIOD"]
[358339222,1744955438555,-578.95773829,0.00019189,2]
[358339224,1744955438564,-500.0,0.00019189,2]
[358339226,1744955438574,-558.61784452,0.00019189,2]
[358339228,1744955438583,-500.0,0.00019189,2]
[358339230,1744955438593,-500.0,0.00019189,2]
[358339232,1744955438602,-500.0,0.00019189,2]
[358339234,1744955438612,-346.40080992,0.00019189,2]
[358339236,1744955438621,-270.85005517,0.00019189,2]
[358339238,1744955438631,-500.0,0.00019189,2]
[358339240,1744955438641,-500.0,0.00019189,2]
[358339242,1744955438650,-175.4397487,0.00019189,2]
[358339244,1744955438659,-500.0,0.00019189,2]
[358339246,1744955438669,-198.07,0.00019189,2]
[358339248,1744955438678,-315.39990795,0.00019189,2]
[358339250,1744955438688,-38716.53529926,0.0001919,2]
[358339252,1744955438697,-935.7183581,0.0001919,3]
[358339254,1744955438706,-67247.2527852,0.0001919,2]
[358339256,1744955438718,-4250.2505069,0.0001919,2]
[358339778,1744955444022,-931.76179686,0.0001919,2]
[358339786,1744955444082,-60670.17001665,0.0001919,2]
[358340001,1744955446372,-1660.17900002,0.0001919,2]
[358340003,1744955446384,-3386.36,0.0001919,2]
[358340010,1744955446436,-1245.0,0.0001919,2]
[358340453,1744955459420,1000.0,0.00017974,2]
[358340454,1744955582760,775.88483749,0.00017974,2]
[358340522,1744956632445,-189.56023479,0.00018696,2]
[358340524,1744956632455,-300.0,0.00018899,2]
[358340527,1744956632465,-21402.25605346,0.000189,2]
[358340529,1744956632474,-2139.4106866,0.00018985,2]
[358340531,1744956632483,-178.06390943,0.0001899,2]
[358340533,1744956632493,-178.06390942,0.00019034,2]
[358340535,1744956632502,-300.0,0.00019072,2]
[358340537,1744956632512,-351.36476924,0.00019073,2]
[358340539,1744956632521,-500.0,0.00019073,2]
[358340541,1744956632531,-500.0,0.00019073,2]
[358340543,1744956632540,-500.0,0.00019073,2]
[358340545,1744956632549,-500.0,0.00019073,2]
[358340547,1744956632558,-500.0,0.00019073,2]
[358340549,1744956632568,-178.06390942,0.00019078,2]
[358340551,1744956632577,-500.0,0.00019085,2]
[358340553,1744956632587,-288.76660622,0.00019085,2]
[358340555,1744956632599,-237.72795182,0.00019085,2]
[358340557,1744956632608,-500.0,0.00019085,2]
[358340559,1744956632617,-500.0,0.00019085,2]
[358340561,1744956632627,-500.0,0.00019085,2]
[358340563,1744956632635,-500.0,0.00019085,2]
[358340565,1744956632645,-500.0,0.00019085,2]
[358340567,1744956632655,-500.0,0.00019085,2]
[358340569,1744956632664,-192.27942512,0.00019085,2]
[358340571,1744956632673,-500.0,0.00019085,2]
[358340572,1744956632682,-500.0,0.00019085,2]
[358340573,1744956632691,-500.0,0.00019085,2]
[358340574,1744956632700,-500.0,0.00019085,2]
[358340575,1744956632709,-500.0,0.00019085,2]
[358340576,1744956632718,-500.0,0.00019085,2]
[358340577,1744956632727,-500.0,0.00019085,2]
[358340578,1744956632736,-500.0,0.00019085,2]
[358340579,1744956632745,-500.0,0.00019085,2]
[358340580,1744956632754,-500.0,0.00019085,2]
[358340581,1744956632763,-500.0,0.00019085,2]
[358340582,1744956632773,-500.0,0.00019085,2]
[358340583,1744956632782,-500.0,0.00019085,2]
[358340584,1744956632791,-500.0,0.00019085,2]
[358340585,1744956632802,-500.0,0.00019085,2]
[358340586,1744956632811,-500.0,0.00019085,2]
[358340587,1744956632820,-500.0,0.00019085,2]
[358340601,1744956632986,-500.0,0.00019085,2]
[358340603,1744956632999,-507.88385488,0.00019085,2]
[358340605,1744956633009,-500.0,0.00019085,2]
[358340607,1744956633018,-500.0,0.00019085,2]
[358340610,1744956633027,-465.61197427,0.00019085,2]
[358340612,1744956633037,-500.0,0.00019085,2]
[358340614,1744956633047,-500.0,0.00019085,2]
[358340616,1744956633056,-500.0,0.00019085,2]
[358340618,1744956633066,-500.0,0.00019085,2]
[358340620,1744956633075,-500.0,0.00019085,2]
[358340622,1744956633085,-500.0,0.00019085,2]
[358340624,1744956633095,-500.0,0.00019085,2]
[358340626,1744956633105,-500.0,0.00019085,2]
[358340628,1744956633115,-500.0,0.00019085,2]
[358340630,1744956633125,-500.0,0.00019085,2]
[358340632,1744956633136,-500.0,0.00019085,2]
[358340634,1744956633146,-500.0,0.00019085,2]
[358340636,1744956633156,-500.0,0.00019085,2]
[358340638,1744956633165,-500.0,0.00019085,2]
[358340640,1744956633175,-500.0,0.00019085,2]
[358340642,1744956633187,-500.0,0.00019085,2]
[358340644,1744956633197,-500.0,0.00019085,2]
[358340646,1744956633207,-500.0,0.00019085,2]
[358340648,1744956633217,-500.0,0.00019085,2]
[358340650,1744956633226,-500.0,0.00019085,2]
[358340652,1744956633236,-500.0,0.00019085,2]
[358340654,1744956633245,-500.0,0.00019085,2]
[358340655,1744956633255,-500.0,0.00019085,2]
[358340657,1744956633265,-359.48108574,0.00019085,2]
[358340659,1744956633276,-500.0,0.00019085,2]
[358340660,1744956633285,-500.0,0.00019085,2]
[358340661,1744956633295,-500.0,0.00019085,2]
[358340662,1744956633305,-500.0,0.00019085,2]
[358340663,1744956633315,-500.0,0.00019085,2]
[358340664,1744956633325,-500.0,0.00019085,2]
[358340665,1744956633335,-500.0,0.00019085,2]
[358340666,1744956633345,-500.0,0.00019085,2]
[358340667,1744956633355,-500.0,0.00019085,2]
[358340668,1744956633364,-500.0,0.00019085,2]
[358340669,1744956633374,-500.0,0.00019085,2]
[358340670,1744956633383,-235.94810857,0.00019085,2]
[358340671,1744956633393,-500.0,0.00019085,2]
[358340672,1744956633402,-500.0,0.00019085,2]
[358340673,1744956633412,-500.0,0.00019088,2]
[358340674,1744956633421,-188.90101569,0.00019089,2]
[358340675,1744956633431,-367.69596724,0.00019089,2]
[358340676,1744956633441,-54204.71440493,0.0001909,2]
[358340677,1744956633450,-467.85917905,0.0001909,3]
[358340678,1744956633459,-66119.48569123,0.0001909,2]
[358340679,1744956633476,-763.80638586,0.0001909,2]
[358340730,1744956638645,-2950.735356,0.00019073,2]
[358340762,1744956640890,-274.49416312,0.00019073,2]
[358340788,1744956646633,-215.56739611,0.000189,2]
[358340789,1744956646644,-311.40260389,0.00019073,2]
[358340790,1744956646655,-6649.61433301,0.00019073,2]
[358340791,1744956646666,-556.22657699,0.00019073,2]
[358340792,1744956646678,-4836.11269476,0.00019073,2]
[358340793,1744956646999,-2343.88498729,0.00019073,2]
[358340794,1744956685779,-204.37248751,0.00018601,2]
[358340795,1744956729953,169.86,0.00013699,2]
[358340796,1744956730276,169.86,0.00013699,2]
[358340797,1744956730643,169.86,0.00013699,2]
[358340798,1744956731011,169.86,0.00013699,2]
[358340799,1744956731298,169.86,0.00013699,2]
[358340800,1744956731706,169.86472502,0.00013699,2]
[358340801,1744956917364,-169.07120369,0.00018021,2]
[358340802,1744956959829,657.18,0.0001801,2]
[358340804,1744957179530,3308.29592448,0.00017921,2]
[358340805,1744957339030,-44.70475611,0.00018021,2]
[358340806,1744957339054,-144.19886758,0.00018601,2]
[358340807,1744957386842,-167.83662476,0.00018601,2]
[358340809,1744957470077,376.08,0.0001801,2]
[358340810,1744957471024,-162.6129279,0.00018601,2]
[358340811,1744957507941,376.0,0.0001801,2]
[358340818,1744957567701,-166.27937244,0.00018601,2]
[358340829,1744957630383,5028.93736184,0.00018,2]
[358340872,1744957832730,-154.69971981,0.00018601,2]
[358340873,1744957832745,-332.48525004,0.000189,2]
[358340874,1744957832755,-300.0,0.00018972,2]
[358340875,1744957832765,-300.0,0.00018972,2]
[358340876,1744957832775,-417.22754796,0.00018973,2]
[358340877,1744957832784,-208.50989972,0.00018973,2]
[358340878,1744957832795,-500.0,0.00018973,2]
[358340879,1744957832805,-2724.90873843,0.00018973,2]
[358340880,1744957832814,-500.0,0.00018973,2]
[358340881,1744957832824,-500.0,0.00018973,2]
[358340882,1744957832834,-500.0,0.00018973,2]
[358340883,1744957832844,-500.0,0.00018973,2]
[358340884,1744957832853,-500.0,0.00018979,2]
[358340885,1744957832862,-334.20931721,0.00018979,2]
[358340886,1744957832871,-500.0,0.00018979,2]
[358340887,1744957832881,-500.0,0.00018979,2]
[358340888,1744957832890,-500.0,0.00018979,2]
[358340889,1744957832899,-500.0,0.00018979,2]
[358340890,1744957832908,-500.0,0.00018979,2]
[358340891,1744957832918,-500.0,0.00018979,2]
[358340892,1744957832928,-523.59481086,0.00018979,2]
[358340893,1744957832937,-500.0,0.00018979,2]
[358340894,1744957832947,-500.0,0.00018979,2]
[358340895,1744957832957,-500.0,0.00018979,2]
[358340896,1744957832967,-313.96935916,0.00018979,2]
[358340897,1744957832976,-27102.35720247,0.0001898,2]
[358340898,1744957832986,-233.92958952,0.0001898,3]
[358340899,1744957832996,-38237.78455472,0.0001898,2]
[358340900,1744957833009,-314.3,0.0001898,2]
[358340901,1744957833020,-9776.9422221,0.0001898,2]
[358341084,1744957841330,-0.00959422,0.0001898,2]
[358341255,1744957844962,-321670.96362896,0.0001898,2]
[358341256,1744957844972,-151.0,0.00019,2]
[358341257,1744957844981,-151.0,0.00019,2]
[358341258,1744957844990,-151.0,0.00019,2]
[358341259,1744957845000,-152.0,0.00019039,2]
[358341260,1744957845009,-3018.40719471,0.00019058,2]
[358341261,1744957845019,-151.0,0.00019069,2]
[358341262,1744957845029,-207.4,0.00019069,2]
[358341263,1744957845038,-500.0,0.00019073,2]
[358341264,1744957845048,-500.0,0.00019073,2]
[358341265,1744957845058,-500.0,0.00019073,2]
[358341266,1744957845069,-153.87683001,0.00019073,2]
[358341267,1744957845079,-500.0,0.00019073,2]
[358341268,1744957845089,-500.0,0.00019073,2]
[358341269,1744957845098,-500.0,0.00019073,2]
[358341270,1744957845108,-500.0,0.00019073,2]
[358341271,1744957845117,-500.0,0.00019073,2]
[358341272,1744957845127,-500.0,0.00019073,2]
[358341273,1744957845136,-500.0,0.00019073,2]
[358341274,1744957845145,-500.0,0.00019073,2]
[358341275,1744957845155,-500.0,0.00019073,2]
[358341276,1744957845165,-541.81345799,0.00019073,2]
[358341277,1744957845174,-500.86136279,0.00019073,2]
[358341279,1744957845184,-500.0,0.00019073,2]
[358341281,1744957845194,-500.0,0.00019073,2]
[358341283,1744957845203,-500.0,0.00019073,2]
[358341285,1744957845213,-500.0,0.00019073,2]
[358341287,1744957845223,-500.0,0.00019073,2]
[358341289,1744957845232,-501.28168204,0.00019073,2]
[358341291,1744957845242,-500.0,0.00019073,2]
[358341293,1744957845251,-256.25464013,0.00019073,2]
[358341295,1744957845261,-500.0,0.00019073,2]
[358341296,1744957845271,-523.06905276,0.00019073,2]
[358341297,1744957845281,-500.0,0.00019073,2]
[358341298,1744957845290,-500.0,0.00019073,2]
[358341299,1744957845300,-528.48879024,0.00019073,2]
[358341300,1744957845310,-500.0,0.00019073,2]
[358341301,1744957845320,-500.0,0.00019073,2]
[358341302,1744957845330,-500.0,0.00019073,2]
[358341303,1744957845339,-500.0,0.00019073,2]
[358341304,1744957845348,-500.0,0.00019073,2]
[358341305,1744957845358,-500.0,0.00019073,2]
[358341306,1744957845368,-502.31119622,0.00019073,2]
[358341307,1744957845377,-503.20623439,0.00019073,2]
[358341308,1744957845387,-251.65259121,0.00019073,2]
[358341309,1744957845396,-443.19438905,0.00019073,2]
[358341310,1744957845406,-500.0,0.00019073,2]
[358341311,1744957845416,-500.0,0.00019073,2]
[358341312,1744957845425,-500.0,0.00019073,2]
[358341313,1744957845435,-500.0,0.00019073,2]
[358341314,1744957845445,-257.38717707,0.00019079,2]
[358341315,1744957845454,-158.456,0.00019079,2]
[358341316,1744957845464,-31931.14012458,0.0001908,2]
[358341331,1744957846898,-57061.08387603,0.0001908,2]
[358341335,1744957938336,-253.00695613,0.00018501,2]
[358341336,1744958000173,570.15996465,0.0001801,2]
[358341337,1744958016521,-168.05306563,0.00018501,2]
[358341338,1744958042665,-229.05306563,0.00018501,2]
[358341360,1744958879059,167.0,0.00018,2]
[358341361,1744958880245,-15.6870414,0.00018501,2]
[358341362,1744958880270,-151.3129586,0.00018501,2]
[358341363,1744958910119,1001.49123032,0.00018,2]
[358341364,1744958918395,-228.78549493,0.00018097,2]
[358341365,1744958943115,-21.21450507,0.00018097,2]
[358341366,1744958943145,-145.28868907,0.00018401,2]
[358341402,1744959031843,-107.71826706,0.00018401,2]
[358341403,1744959031852,-77.74010703,0.00018501,2]
[358341404,1744959031862,-283.75162734,0.00018637,2]
[358341405,1744959031871,-399.94432502,0.00018772,2]
[358341406,1744959031880,-399.944325,0.00018821,2]
[358341407,1744959031890,-151.539104,0.00018869,2]
[358341408,1744959031899,-196.19,0.0001887,2]
[358341409,1744959031908,-399.944325,0.00018871,2]
[358341410,1744959031917,-300.0,0.00018872,2]
[358341411,1744959031926,-300.0,0.00018872,2]
[358341412,1744959031936,-569.09092165,0.00018873,2]
[358341413,1744959031945,-500.0,0.00018873,2]
[358341414,1744959031954,-500.0,0.00018873,2]
[358341415,1744959031964,-500.0,0.00018873,2]
[358341416,1744959031973,-500.0,0.00018873,2]
[358341417,1744959031982,-500.0,0.00018873,2]
[358341418,1744959031991,-180.17102395,0.00018879,2]
[358341419,1744959032001,-224.84386787,0.00018879,2]
[358341420,1744959032011,-59865.46985139,0.0001888,2]
[358341495,1744959037965,-388.84957946,0.0001888,2]
[358341499,1744959037990,-34396.33786133,0.0001888,2]
[358341501,1744959038002,-2064.8091959,0.0001888,2]
[358341513,1744959038110,-7581.81612359,0.0001888,2]
[358341541,1744959038382,-153532.4804967,0.0001888,2]
[358341574,1744959039352,-413.97742536,0.00018075,2]
[358341597,1744959040420,-4.85924694,0.00018075,2]
[358341598,1744959040431,-1378.4437097,0.0001888,2]
[358341599,1744959040454,-7435.41270457,0.0001888,2]
[358341616,1744959042967,-462.24247956,0.00018401,2]
[358341617,1744959042977,-1599.27900621,0.0001888,2]
[358341621,1744959046052,-500.0,0.0001888,2]
[358341622,1744959046064,-61795.54595935,0.0001888,2]
[358341623,1744959176524,-200.74523906,0.0001802,2]
[358341624,1744959206646,-67.00065094,0.0001802,2]
[358341625,1744959206670,-144.41676803,0.00018301,2]
[358341626,1744959219865,162.16265803,0.0001801,2]
[358341627,1744959222855,-56.32847103,0.00018301,2]
[358341628,1744959222879,-103.64925897,0.00018301,2]
[358341629,1744959226573,-240.92314805,0.00018301,2]
[358341632,1744959534670,1890.0,0.00018,7]
[358341633,1744959720045,979.1701421,0.00017965,2]
[358341634,1744959768930,1000.0,0.00025,120]
[358341635,1744959786525,189.0,0.0001801,2]
[358341637,1744959964804,406.5464052,0.00017914,2]
[358341664,1744960163282,3100.0,0.0002,120]
[358341694,1744960232003,-58.50604036,0.00018301,2]
[358341695,1744960232013,-160.0,0.0001879,2]
[358341696,1744960232022,-163.20059762,0.00018879,2]
[358341697,1744960232032,-2156.24412182,0.00018879,2]
[358341698,1744960232041,-163.20059759,0.00018902,2]
[358341699,1744960232051,-163.20059759,0.00018924,2]
[358341700,1744960232061,-163.20059759,0.00018947,2]
[358341701,1744960232070,-163.20059759,0.00018969,2]
[358341702,1744960232079,-300.0,0.00018972,2]
[358341703,1744960232089,-300.0,0.00018972,2]
[358341704,1744960232099,-500.0,0.00018973,2]
[358341705,1744960232109,-506.01009374,0.00018973,2]
[358341706,1744960232118,-500.0,0.00018973,2]
[358341707,1744960232127,-500.0,0.00018973,2]
[358341708,1744960232137,-500.0,0.00018973,2]
[358341709,1744960232146,-500.0,0.00018973,2]
[358341710,1744960232156,-158.456,0.00018978,2]
[358341711,1744960232165,-500.0,0.00018978,2]
[358341712,1744960232173,-500.0,0.00018978,2]
[358341713,1744960232183,-500.0,0.00018978,2]
[358341714,1744960232193,-248.38128592,0.00018978,2]
[358341715,1744960232203,-189.6787596,0.00018978,2]
[358341716,1744960232212,-39008.1691021,0.00018979,2]
[358341717,1744960234232,267.7458906,0.00017958,2]
[358341750,1744960238095,-10752.1235128,0.00018979,2]
[358341761,1744960238222,-11177.91608019,0.00018979,2]
[358341762,1744960238234,-2152.7829,0.00018979,2]
[358341763,1744960238248,-392.7104439,0.00018979,2]
[358341764,1744960238260,-4962.66302023,0.00018979,2]
[358341765,1744960238292,-2101.11184565,0.00018979,2]
[358341766,1744960238304,-7235.42397974,0.00018979,2]
[358341785,1744960240501,-1687.31251793,0.00018979,2]
[358341786,1744960240513,-4436.71785262,0.00018979,2]
[358341787,1744960240525,-16468.21073809,0.00018979,2]
[358341788,1744960240535,-854.71282944,0.00018979,3]
[358341789,1744960240545,-27883.33540969,0.0001898,2]
[358341790,1744960240749,-0.00478592,0.0001898,2]
[358341795,1744960245044,-985.75708877,0.0001898,2]
[358341801,1744960246104,-2460.34849637,0.0001898,2]
[358341802,1744960246116,-500.0,0.0001898,2]
[358341803,1744960246128,-14162.29233212,0.0001898,2]
[358341808,1744960246216,-24397.8087067,0.0001898,2]
[358341812,1744960246248,-324.65567513,0.0001898,2]
[358341822,1744960255490,-305.67155632,0.0001879,2]
[358341823,1744960301316,-203.224285,0.00018704,2]
[358341824,1744960442048,-225.03548007,0.00018591,2]
[358341826,1744960486918,260.013846,0.00025,120]
[358341827,1744960626048,-329.25254448,0.00018491,2]
[358341828,1744960633340,-158.66768843,0.00018306,2]
[358341829,1744960671164,-159.97773,0.00018291,2]
[358341830,1744960671187,-4.64854224,0.00018306,2]
[358341831,1744960771835,1998.78447351,0.0001801,2]
[358341832,1744960805684,2495.4434264,0.00017796,2]
[358341833,1744960806284,-160.0,0.00018306,2]
[358341834,1744960818917,1444.29611018,0.0001801,2]
[358341855,1744961285338,-194.65503208,0.00018391,2]
[358341856,1744961285362,-51.16639914,0.00018391,2]
[358341860,1744961368253,203.224285,0.00017776,2]
[358341862,1744961402814,-250.0,0.00018491,2]
[358341876,1744961425383,-178.36764312,0.00018391,2]
[358341890,1744961432163,-26.70854904,0.00018391,2]
[358341891,1744961432183,-100.0239924,0.00018491,2]
[358341892,1744961432195,-3124.83901892,0.00018491,2]
[358341893,1744961432205,-300.0,0.00018677,2]
[358341894,1744961432214,-300.0,0.00018677,2]
[358341895,1744961432224,-300.0,0.00018677,2]
[358341896,1744961432234,-2927.76174578,0.00018678,2]
[358341897,1744961432244,-50000.0,0.00018777,2]
[358341898,1744961432254,-157.93232749,0.00018777,2]
[358341899,1744961432264,-500.0,0.00018777,2]
[358341900,1744961432274,-500.0,0.00018777,2]
[358341901,1744961432284,-500.0,0.00018777,2]
[358341902,1744961432294,-500.0,0.00018777,2]
[358341903,1744961432304,-500.0,0.00018777,2]
[358341904,1744961432314,-519.5670288,0.00018777,2]
[358341905,1744961432323,-151.53910398,0.00018778,2]
[358341907,1744961432333,-160.0,0.00018779,2]
[358341908,1744961432343,-151.53910398,0.000188,2]
[358341909,1744961432353,-151.0,0.00018868,2]
[358341910,1744961432362,-207.4,0.00018868,2]
[358341911,1744961432372,-500.0,0.00018873,2]
[358341912,1744961432382,-511.65483435,0.00018878,2]
[358341913,1744961432392,-193.88496529,0.00018878,2]
[358341914,1744961432402,-157.639,0.00018879,2]
[358341915,1744961432411,-8751.01253645,0.00018879,2]
[358341916,1744961432425,-379.06604838,0.00018879,2]
[358341923,1744961438240,-10766.38063182,0.00018879,2]
[358341924,1744961438256,-1729.42529816,0.00018879,2]
[358341925,1744961438272,-1705.04698977,0.00018879,2]
[358341926,1744961438358,-10766.38828084,0.00018879,2]
[358341927,1744961438371,-44635.59571664,0.00018879,2]
[358341928,1744961438381,-758.44543358,0.00018879,3]
[358341929,1744961438390,-370000.0,0.00018879,2]
[358341930,1744961438399,-202.48819676,0.000189,2]
[358341931,1744961438409,-306.0000001,0.000189,2]
[358341932,1744961438418,-820.0,0.00019,2]
[358341933,1744961438428,-360.07886672,0.00019069,2]
[358341934,1744961438437,-2691.5,0.00019073,2]
[358341935,1744961438654,-2691.5,0.00019073,2]
[358341936,1744961438664,-2691.5,0.00019073,2]
[358341937,1744961438675,-2691.5,0.00019073,2]
[358341938,1744961438684,-2691.5,0.00019073,2]
[358341939,1744961438694,-500.0,0.00019073,2]
[358341940,1744961438704,-500.0,0.00019073,2]
[358341941,1744961438714,-393.74855766,0.00019073,2]
[358341942,1744961438723,-500.0,0.00019073,2]
[358341943,1744961438733,-365.20452727,0.00019073,2]
[358341944,1744961438742,-556.61160428,0.00019073,2]
[358341945,1744961438752,-500.0,0.00019073,2]
[358341946,1744961438762,-500.0,0.00019073,2]
[358341947,1744961438771,-500.0,0.00019073,2]
[358341948,1744961438781,-500.0,0.00019073,2]
[358341949,1744961438791,-500.0,0.00019073,2]
[358341950,1744961438800,-507.00499376,0.00019073,2]
[358341951,1744961438811,-500.0,0.00019073,2]
[358341952,1744961438821,-500.0,0.00019073,2]
[358341953,1744961438831,-397.92051116,0.00019073,2]
[358341954,1744961438841,-500.0,0.00019073,2]
[358341955,1744961438850,-151.0,0.00019073,2]
[358341956,1744961438860,-500.0,0.00019073,2]
[358341957,1744961438869,-279.86990672,0.00019073,2]
[358341958,1744961438879,-151.0,0.00019073,2]
[358341959,1744961438889,-152.0588532,0.00019073,2]
[358341960,1744961438898,-151.0,0.00019073,2]
[358341961,1744961438908,-198.84709641,0.00019073,2]
[358341962,1744961438918,-166.32043676,0.00019073,2]
[358341963,1744961438927,-151.0,0.00019073,2]
[358341964,1744961438937,-500.0,0.00019073,2]
[358341965,1744961438947,-500.0,0.00019073,2]
[358341966,1744961438959,-151.42624272,0.00019073,2]
[358341967,1744961438968,-151.0,0.00019073,2]
[358341968,1744961438978,-151.0,0.00019073,2]
[358341969,1744961438988,-151.0,0.00019073,2]
[358341970,1744961438999,-201.86885454,0.00019073,2]
[358341971,1744961439008,-151.0,0.00019073,2]
[358341972,1744961439018,-151.0,0.00019073,2]
[358341973,1744961439028,-151.0,0.00019073,2]
[358341974,1744961439039,-151.0,0.00019073,2]
[358341975,1744961439049,-151.0,0.00019073,2]
[358341976,1744961439059,-151.0,0.00019073,2]
[358341977,1744961439069,-151.0,0.00019073,2]
[358341978,1744961439078,-151.0,0.00019073,2]
[358341979,1744961439088,-151.0,0.00019073,2]
[358341980,1744961439097,-500.0,0.00019073,2]
[358341981,1744961439108,-500.0,0.00019073,2]
[358341982,1744961439117,-177.38996013,0.00019079,2]
[358341983,1744961439127,-1470.09852278,0.00019079,2]
[358341984,1744961439137,-434972.99225959,0.0001908,2]
[358341989,1744961440598,-0.00751051,0.00018776,2]
[358341990,1744961440611,-335.49993713,0.00018776,2]
[358341991,1744961440620,-357.67510748,0.0001908,2]
[358342004,1744961444584,-320.89008074,0.0001908,2]
[358342011,1744961446294,-845.0,0.0001908,2]
[358342012,1744961446306,-307.32000001,0.0001908,2]
[358342013,1744961446386,-2196.50258158,0.0001908,2]
[358342017,1744961637502,963.0,0.00025,120]
[358342024,1744962009555,-250.0,0.00018391,2]
[358342025,1744962009578,-70.33545648,0.00018391,2]
[358342026,1744962096905,2593.734641,0.0001775,2]
[358342035,1744962376040,240.419685,0.0001776,2]
[358342048,1744962542135,65146.86286865,0.00017,2]
[358342068,1744962632338,-250.0,0.00018291,2]
[358342069,1744962632348,-238.82833732,0.00018291,3]
[358342070,1744962632358,-102.5443538,0.00018391,2]
[358342071,1744962632367,-196.24817362,0.00018531,2]
[358342072,1744962632377,-196.24817362,0.00018602,2]
[358342073,1744962632387,-1597.60521241,0.00018631,2]
[358342074,1744962632396,-160.0,0.00018644,2]
[358342075,1744962632405,-5000.0,0.00018653,2]
[358342076,1744962632414,-196.24817362,0.00018673,2]
[358342077,1744962632423,-151.0,0.00018768,2]
[358342078,1744962632432,-207.4,0.00018768,2]
[358342079,1744962632441,-300.0,0.00018772,2]
[358342080,1744962632451,-300.0,0.00018772,2]
[358342081,1744962632462,-300.0,0.00018772,2]
[358342082,1744962632472,-500.0,0.00018773,2]
[358342083,1744962632482,-500.0,0.00018773,2]
[358342085,1744962632492,-500.0,0.00018773,2]
[358342087,1744962632503,-500.0,0.00018773,2]
[358342090,1744962632512,-5368.55424396,0.00018773,2]
[358342358,1744962968573,409.31405,0.00018,30]
[358342359,1744963063385,-327.35290703,0.00018579,2]
[358342360,1744963126416,-337.7807,0.00018577,2]
[358342361,1744963229557,150.5,0.0001801,2]
[358342362,1744963352957,-154.225712,0.00018577,2]
[358342363,1744963525901,240.419686,0.00017676,2]
[358342379,1744963640394,-151.65386098,0.00018577,2]
[358342380,1744963640417,-141.02813702,0.00018578,2]
[358342407,1744963832605,-151.0,0.00018668,2]
[358342408,1744963832617,-154.7763476,0.00018668,2]
[358342423,1744963838840,-52.6236524,0.00018668,2]
[358342424,1744963838850,-300.0,0.00018672,2]
[358342425,1744963838862,-300.0,0.00018672,2]
[358342426,1744963838872,-300.0,0.00018672,2]
[358342427,1744963838881,-500.0,0.00018673,2]
[358342428,1744963838891,-507.21265702,0.00018673,2]
[358342429,1744963838900,-500.0,0.00018673,2]
[358342430,1744963838912,-500.0,0.00018673,2]
[358342431,1744963838923,-500.0,0.00018673,2]
[358342432,1744963838934,-500.0,0.00018673,2]
[358342433,1744963838944,-500.0,0.00018673,2]
[358342434,1744963838955,-500.0,0.00018673,2]
[358342435,1744963838965,-500.0,0.00018673,2]
[358342436,1744963838975,-1638.74999611,0.00018673,2]
[358342437,1744963838984,-500.0,0.00018677,2]
[358342438,1744963838993,-500.0,0.00018677,2]
[358342439,1744963839003,-500.0,0.00018677,2]
[358342440,1744963839012,-500.0,0.00018677,2]
[358342441,1744963839021,-505.69663554,0.00018677,2]
[358342442,1744963839031,-500.0,0.00018677,2]
[358342443,1744963839040,-500.0,0.00018677,2]
[358342444,1744963839050,-500.0,0.00018677,2]
[358342445,1744963839060,-500.0,0.00018677,2]
[358342446,1744963839070,-500.0,0.00018677,2]
[358342447,1744963839079,-500.0,0.00018677,2]
[358342448,1744963839092,-500.0,0.00018677,2]
[358342449,1744963839102,-500.0,0.00018677,2]